{"text_format":"3","workbook":"xlsx","n_sheets":5,"sheets":["Дневной рацион, Дети до 3 лет, ","дети 1-3","дети старше 3 лет","дети с пищевой аллергией","дети с ОВЗ"],"read":"whole","date_system":"1900"}

{"sheet":"Дневной рацион, Дети до 3 лет, ","index":0,"n_rows":27,"n_cols":11,"rows_kept":27,"merged":[[0,1,0,3],[0,6,0,8]]}
["Учреждение","МКДОУ д/с № 504 8.12.2022",null,null,"Отд./корп",{"$nulls":4},"День",4]
["Прием пищи","Раздел","№ рец.","Блюдо","Выход","Калорийность","Белки","Жиры","Углеводы"]
["ЗАВТРАК"]
[null,"Горячие блюда (каши, запеканки и т.д)","270","Каша молочная пшеничная жидкая","150г",911.25,27.75,28.05,136.875]
[null,"Бутерброды","99","Бутерброд с маслом ","34г",191.372,1.555,0.098,9.715]
[null,"Напитки","117","Какао с молоком","150г",115,1.8,3,17.9]
["Общая стоимость"]
["ЗАВТРАК № 2"]
["Общая стоимость"]
["О Б Е Д"]
[null,"Первые блюда (Супы)","149","Суп картофельный с горохом","150г",64.8,1.38,2.55,9.075]
[null,"Вторые блюда","349","Рыба -горбуша, тушеная в томате с овощами ","120г",122.572,11.4,6.172,5.4]
[null,"Гарниры","434","Картофельное пюре","110г",101.2,2.31,4.84,11.99]
[null,null,"527","Компот из смеси сухофруктов","150г",82.5,0.375,0,20.25]
[{"$nulls":3},"Хлеб бородинский","50г",0,0,0,0]
[null,null,"114","Хлеб пшеничный","15г",35.25,105.9,0.12,7.38]
["Общая стоимость"]
["ПОЛДНИК"]
[null,"Бутерброды","101","Батон с повидлом","45г",176,1.7,4.3,32.6]
[null,null,"534","Молоко кипяченое","150г",79.5,4.35,3.75,7.2]
["Общая стоимость"]
["У Ж И Н"]
[null,"Горячие блюда (каши, запеканки и т.д)","307","Омлет натуральный","80г",130.462,6.893,10.708,1.847]
[null,"Напитки","132","Чай с сахаром","150г",45,0,0,8.5]
[null,null,"114","Хлеб пшеничный","30г",70.5,211.8,0.24,14.76]
["Общая стоимость"]
["Общая стоимость дневного рациона"]

{"sheet":"дети 1-3","index":1,"n_rows":23,"n_cols":9,"rows_kept":23,"merged":[[0,1,0,3],[0,6,0,8]]}
["Учреждение","МКДОУ Тогучинского района \" Тогучинский д/с № 2\"",{"$nulls":4},"День 10"]
["Прием пищи","№ рец.","Блюдо","Выход","Цена","Калорийность","Белки","Жиры","Углеводы"]
["ЗАВТРАК"]
[null,"54-24к","каша молочная пшённая жидкая ","141г",null,194,5.9,7.2,27]
[null,99,"Бутерброд с маслом","29г",null,142,1.2,12.1,7.3]
[null,"54-2гн","чай с  сахаром","180г",null,24,0.2,0,5.8]
["ЗАВТРАК № 2"]
[null,null,"Сок ","200г",null,76,0,0,20]
["О Б Е Д"]
[null,"54-1с","щи со свежей капустой с картофелем со сметаной на кур./б.","150г",null,69,3.5,4.2,4.3]
[null,"54-5г","каша перловая рассыпчатая","90г",null,112,2.6,3.2,18.3]
[null,"54-3соус","соус томатный","10г",null,7,0.3,0.2,0.9]
[null,"54-29м","шницель из курицы","50г",null,84,9.6,2.1,6.8]
[null,"54-2хн","компот из  кураги","150г",null,61,0.8,0.1,15]
[null,"пром.","Хлеб пшеничный","12г",null,28,0.9,0.1,6]
[null,"пром.","Хлеб ржаной","12г",null,61,0.1,0.1,15]
["ПОЛДНИК-"]
[null,"пром.","пряник","50г",null,183,3,2.4,38]
[null,"54-23гн","кофейный напиток с молоком","180г",null,77,3.5,2.6,10.2]
["УЖИН"]
[null,"54-3г","макаронные изделия отварные с сыром",125,null,167,6.3,5.4,23]
[null,"54-5хн","компот из с/фр","180г",null,72,0.4,0,17.9]
[null,"пром.","Хлеб пшеничный","15г",null,35,1.1,0.1,7.5]

{"sheet":"дети старше 3 лет","index":2,"n_rows":22,"n_cols":9,"rows_kept":22,"merged":[[0,1,0,3],[0,6,0,8]]}
["Учреждение","МКДОУ Тогучинского района \" Тогучинский д/с № 2\"",{"$nulls":4},"день 10"]
["Прием пищи","№ рец.","Блюдо","Выход","Цена","Калорийность","Белки","Жиры","Углеводы"]
["ЗАВТРАК"]
[null,"54-24к","каша молочная пшённая жидкая ","166г",null,268,8.2,8.5,37]
[null,99,"Бутерброд с маслом","34г",null,167,1.4,14,8.6]
[null,"54-2гн","чай с  сахаром","200г",null,24,0.2,0,5.9]
["2-ой завтрак","пром.","сок фруктовый","100г",null,38,0,0,10]
["О Б Е Д"]
[null,"54-1с","щи со свежей капустой с картофелем со сметаной на кур./б.","200г",null,92,4.6,5.6,5.7]
[null,"54-5г","каша перловая рассыпчатая","100г",null,124,2.9,3.6,20]
[null,"54-29м","шницель из курицы","70г",null,118,13,2.9,9.5]
[null,"54-3соус","соус томатный","15г",null,11,0.5,0.3,1.4]
[null,"54-2хн","компот из  кураги","200г",null,81,1,0.1,20]
[null,"пром.","Хлеб пшеничный","20г",null,47,1.5,0.2,10]
[null,"пром.","Хлеб ржаной","15г",null,26,1,0.2,5]
["ПОЛДНИК "]
[null,"пром.","пряник","60г",null,219,3.6,2.9,45.6]
[null,"54-23гн","кофейный напиток с молоком","200г",null,86,3.8,2.9,11.3]
["УЖИН"]
[null,"54-3г","макаронные изделия отварные с сыром",130,null,175,6.6,5.6,24]
[null,"54-5хн","компот из с/фр","200г",null,81,0.5,0,19.7]
[null,"пром.","Хлеб пшеничный","20г",null,47,1.5,0.2,10]

{"sheet":"дети с пищевой аллергией","index":3,"n_rows":22,"n_cols":9,"rows_kept":22,"merged":[[0,1,0,3],[0,6,0,8]]}
["Учреждение","МКДОУ Тогучинского района \" Тогучинский д/с № 2\"",{"$nulls":4},"день 10"]
["Прием пищи","№ рец.","Блюдо","Выход","Цена","Калорийность","Белки","Жиры","Углеводы"]
["ЗАВТРАК"]
[null,"54-8к","каша безмолочная  пшенная  с  курагой","166г",null,233,6.6,8.1,33]
[null,99,"Бутерброд с маслом","35г",null,146,1.4,10.7,8.9]
[null,"54-2гн","чай с сахаром","200г",null,24,0.2,0,5.9]
[]
["О Б Е Д"]
[null,"54-1с","щи со свежей капустой с картофелем без сметаны на кур./б.","200г",null,67,1.5,4,6.3]
[null,"54-5г","каша перловая рассыпчатая","100г",null,124,2.9,3.6,20]
[null,{"$f":"'дети старше 3 лет'!B11","v":"54-29м"},{"$f":"'дети старше 3 лет'!C11","v":"шницель из курицы"},{"$f":"'дети старше 3 лет'!D11","v":"70г"},null,{"$f":"'дети старше 3 лет'!F11","v":118},{"$f":"'дети старше 3 лет'!G11","v":13},{"$f":"'дети старше 3 лет'!H11","v":2.9},{"$f":"'дети старше 3 лет'!I11","v":9.5}]
[null,{"$f":"'дети старше 3 лет'!B12","v":"54-3соус"},{"$f":"'дети старше 3 лет'!C12","v":"соус томатный"},{"$f":"'дети старше 3 лет'!D12","v":"15г"},null,{"$f":"'дети старше 3 лет'!F12","v":11},{"$f":"'дети старше 3 лет'!G12","v":0.5},{"$f":"'дети старше 3 лет'!H12","v":0.3},{"$f":"'дети старше 3 лет'!I12","v":1.4}]
[null,"54-2хн","компот из  кураги","200г",null,81,1,0.1,20]
[null,"пром.","Хлеб пшеничный","20г",null,47,1.5,0.2,10]
[null,"пром.","Хлеб ржаной","15г",null,26,1,0.2,5]
["ПОЛДНИК "]
[null,"пром.","хдеб пшеничный","50г",null,118,3.8,0.5,24.5]
[null,"54-7хн","компот из  смеси фруктовой б/.з","200г",null,39,0.3,0.1,9.3]
["УЖИН"]
[null,"54-2г","макаронные изделия отварные с овощами","130г",null,153,4,5.2,22]
[null,"пром.","Хлеб пшеничный",20,null,47,1.5,0.2,9.8]
[null,"54-5хн","компот из с/фр","200г",null,81,0.5,0,19.7]

{"sheet":"дети с ОВЗ","index":4,"n_rows":16,"n_cols":9,"rows_kept":16,"merged":[[0,1,0,3],[0,6,0,8]]}
["Учреждение","МКДОУ Тогучинского района \" Тогучинский д/с № 2\"",{"$nulls":4},"день 10"]
["Прием пищи","№ рец.","Блюдо","Выход","Цена","Калорийность","Белки","Жиры","Углеводы"]
["ЗАВТРАК"]
[null,"54-24к","каша молочная пшённая жидкая ","166г",null,268,8.2,8.5,37]
[null,99,"Бутерброд с маслом","35г",null,172,1.4,14,8.9]
[null,"54-2гн","чай с  сахаром","200г",null,24,0.2,0,5.9]
[]
["О Б Е Д"]
[null,"54-1с","щи со свежей капустой с картофелем со сметаной на кур./б.","200г",null,92,4.6,5.6,5.7]
[null,"54-5г","каша перловая рассыпчатая","100г",null,124,2.9,3.6,20]
[null,{"$f":"'дети старше 3 лет'!B11","v":"54-29м"},{"$f":"'дети старше 3 лет'!C11","v":"шницель из курицы"},{"$f":"'дети старше 3 лет'!D11","v":"70г"},null,{"$f":"'дети старше 3 лет'!F11","v":118},{"$f":"'дети старше 3 лет'!G11","v":13},{"$f":"'дети старше 3 лет'!H11","v":2.9},{"$f":"'дети старше 3 лет'!I11","v":9.5}]
[null,{"$f":"'дети старше 3 лет'!B12","v":"54-3соус"},{"$f":"'дети старше 3 лет'!C12","v":"соус томатный"},{"$f":"'дети старше 3 лет'!D12","v":"15г"},null,{"$f":"'дети старше 3 лет'!F12","v":11},{"$f":"'дети старше 3 лет'!G12","v":0.5},{"$f":"'дети старше 3 лет'!H12","v":0.3},{"$f":"'дети старше 3 лет'!I12","v":1.4}]
[null,"пром.","сок фруктовый","200г",null,76,0,0,20]
[null,"пром.","Хлеб пшеничный","20г",null,47,1.5,0.2,10]
[null,"пром.","Хлеб ржаной","15г",null,26,1,0.2,5]
[null,null,"яблоко свежее","200г",null,107,0.7,0.2,23]